fUST/lending_fUST_20250102
["ID","MTS","AMOUNT","RATE_DAILY","PERIOD"]
[347426591,1735788644207,-732.05,0.00021643,3]
[347426592,1735788644217,-527.51,0.00021643,3]
[347426593,1735788644226,-499.0,0.00021643,4]
[347426594,1735788644236,-500.0,0.00021643,3]
[347426595,1735788644245,-2440.59,0.00021643,3]
[347426596,1735788644254,-500.0,0.00021643,3]
[347426597,1735788644263,-500.0,0.00021643,3]
[347426598,1735788644275,-500.0,0.00021643,3]
[347426599,1735788644285,-500.0,0.00021643,3]
[347426600,1735788644294,-166.424857,0.00021671,2]
[347426601,1735788644303,-160.0,0.00021916,6]
[347426602,1735788644314,-151.0,0.00021917,2]
[347426603,1735788644323,-500.0,0.00021917,3]
[347426604,1735788644333,-500.0,0.00021917,3]
[347426605,1735788644342,-1000.0,0.00021917,2]
[347426606,1735788644351,-1000.0,0.00021917,2]
[347426607,1735788644362,-1000.0,0.00021917,2]
[347426608,1735788644372,-1000.0,0.00021917,2]
[347426609,1735788644381,-1099.80224045,0.00021917,2]
[347426610,1735788644391,-500.0,0.00021917,3]
[347426611,1735788644400,-732.05,0.00021917,3]
[347426612,1735788644413,-527.51,0.00021917,3]
[347426613,1735788644423,-500.0,0.00021917,3]
[347426614,1735788644432,-977.47492895,0.00021917,3]
[347426615,1735788644444,-1463.11507105,0.00021917,3]
[347426616,1735788644454,-500.0,0.00021917,3]
[347426617,1735788644463,-500.0,0.00021917,3]
[347426618,1735788644472,-500.0,0.00021917,3]
[347426619,1735788644482,-523.36749278,0.00021917,3]
[347426620,1735788644491,-166.06892395,0.00021931,2]
[347426621,1735788644500,-903.38104533,0.00021954,2]
[347426622,1735788644510,-2000.0,0.00022,2]
[347426623,1735788644519,-500.0,0.00022,2]
[347426624,1735788644528,-500.0,0.00022,2]
[347426625,1735788644537,-500.0,0.00022,2]
[347426626,1735788644546,-500.0,0.00022,2]
[347426627,1735788644556,-500.0,0.00022,2]
[347426628,1735788644565,-500.0,0.00022,2]
[347426629,1735788644574,-500.0,0.00022,2]
[347426630,1735788644583,-500.0,0.00022,2]
[347426631,1735788644593,-500.0,0.00022,2]
[347426632,1735788644602,-972.09977574,0.00022,2]
[347426633,1735788644612,-500.0,0.00022,2]
[347426634,1735788644621,-500.0,0.00022,2]
[347426635,1735788644630,-500.0,0.00022,2]
[347426636,1735788644640,-500.0,0.00022,2]
[347426637,1735788644649,-700.0,0.00022,2]
[347426638,1735788644658,-500.0,0.00022,2]
[347426639,1735788644667,-700.0,0.00022,2]
[347426640,1735788644677,-700.0,0.00022,2]
[347426641,1735788644686,-700.0,0.00022,2]
[347426642,1735788644695,-518.49834464,0.00022,2]
[347426643,1735788644705,-700.0,0.00022,2]
[347426644,1735788644714,-700.0,0.00022,2]
[347426645,1735788644723,-700.0,0.00022,2]
[347426646,1735788644732,-700.0,0.00022,2]
[347426647,1735788644741,-700.0,0.00022,2]
[347426648,1735788644751,-700.0,0.00022,2]
[347426649,1735788644760,-700.0,0.00022,2]
[347426650,1735788644769,-700.0,0.00022,2]
[347426651,1735788644779,-933.25880591,0.00022,2]
[347426652,1735788644788,-150.0,0.00022,2]
[347426653,1735788644797,-586.0,0.00022,2]
[347426654,1735788644806,-166.424857,0.00022055,2]
[347426655,1735788644816,-500.0,0.00022191,3]
[347426656,1735788644825,-500.0,0.00022191,3]
[347426657,1735788644834,-500.0,0.00022191,3]
[347426658,1735788644844,-732.05,0.00022191,3]
[347426659,1735788644853,-527.51,0.00022191,3]
[347426660,1735788644864,-500.0,0.00022191,3]
[347426661,1735788644873,-2440.59,0.00022191,3]
[347426662,1735788644882,-38.57279205,0.00022191,3]
[347426679,1735789216196,154.5569986,0.00014222,14]
[347426686,1735789832554,-177.536593,0.00013973,2]
[347426687,1735789832565,-2461.05643091,0.000189,2]
[347426688,1735789832575,-151.0,0.00019,2]
[347426689,1735789832585,-152.590825,0.00019,2]
[347426690,1735789832594,-156.612358,0.00019,2]
[347426691,1735789832605,-178.797,0.00019043,2]
[347426692,1735789832614,-300.0,0.00019177,2]
[347426693,1735789832623,-500.0,0.00019178,2]
[347426694,1735789832635,-500.0,0.00019178,2]
[347426695,1735789832644,-328.12745954,0.00019178,2]
[347426696,1735789832654,-500.0,0.00019178,2]
[347426697,1735789832663,-500.0,0.00019178,2]
[347426698,1735789832671,-286.91009174,0.00019178,2]
[347426699,1735789832683,-213.08990826,0.00019178,2]
[347426700,1735789832692,-500.0,0.00019178,2]
[347426701,1735789832701,-500.0,0.00019178,2]
[347426702,1735789832710,-587.32,0.00019178,2]
[347426703,1735789832719,-561.11,0.00019178,2]
[347426704,1735789832729,-500.0,0.00019178,2]
[347426705,1735789832738,-500.0,0.00019178,2]
[347426706,1735789832747,-500.0,0.00019178,2]
[347426707,1735789832757,-500.0,0.00019178,2]
[347426708,1735789832766,-500.0,0.00019178,2]
[347426709,1735789832776,-490.24011352,0.00019178,2]
[347426710,1735789832785,-500.0,0.00019178,2]
[347426711,1735789832795,-1220.3,0.00019178,2]
[347426712,1735789832804,-500.0,0.00019178,2]
[347426713,1735789832813,-219.22652484,0.000192,2]
[347426739,1735789838672,-687.84560501,0.00018913,2]
[347426833,1735789843623,-4476.91195754,0.00018913,2]
[347426835,1735789843637,-272.17,0.00019178,2]
[347426837,1735789843648,-480.40347516,0.000192,2]
[347426838,1735789843659,-500.0,0.00019451,3]
[347426839,1735789843668,-500.0,0.00019452,3]
[347426840,1735789843677,-185.61,0.00019452,3]
[347426841,1735789843687,-351.02,0.00019452,3]
[347426842,1735789843696,-500.0,0.00019452,3]
[347426843,1735789843705,-500.0,0.00019452,3]
[347426844,1735789843715,-500.0,0.00019452,3]
[347426845,1735789843724,-500.0,0.00019452,3]
[347426846,1735789843734,-500.0,0.00019452,3]
[347426847,1735789843743,-1220.3,0.00019452,3]
[347426848,1735789843753,-533.92087163,0.00019452,3]
[347426849,1735789843763,-500.0,0.00019725,3]
[347426850,1735789843772,-500.0,0.00019726,3]
[347426851,1735789843782,-500.0,0.00019726,3]
[347426852,1735789843791,-500.0,0.00019726,3]
[347426853,1735789843801,-425.86128328,0.00019726,3]
[347426854,1735789843811,-500.0,0.00019726,3]
[347426855,1735789843820,-500.0,0.00019726,3]
[347426856,1735789843830,-1220.3,0.00019726,3]
[347426857,1735789843839,-500.0,0.00019999,3]
[347426858,1735789843850,-500.0,0.0002,3]
[347426859,1735789843859,-500.0,0.0002,3]
[347426860,1735789843868,-324.36304343,0.0002,3]
[347426861,1735789843878,-500.0,0.0002,3]
[347426862,1735789843887,-500.0,0.0002,3]
[347426863,1735789843897,-1220.3,0.0002,3]
[347426864,1735789843907,-500.0,0.00020273,3]
[347426865,1735789843916,-500.0,0.00020273,3]
[347426866,1735789843925,-500.0,0.00020273,3]
[347426867,1735789843934,-500.0,0.00020273,3]
[347426868,1735789843944,-1220.3,0.00020273,3]
[347426869,1735789843953,-590.25027232,0.00020273,3]
[347426870,1735789843962,-534.0,0.00020274,2]
[347426871,1735789843971,-2322.0,0.00020274,2]
[347426872,1735789843980,-394.0,0.00020274,2]
[347426873,1735789843989,-177.536593,0.00020447,2]
[347426874,1735789844000,-500.0,0.00020547,3]
[347426875,1735789844009,-500.0,0.00020547,3]
[347426876,1735789844018,-500.0,0.00020547,3]
[347426877,1735789844027,-500.0,0.00020547,3]
[347426878,1735789844037,-1220.3,0.00020547,3]
[347426879,1735789844046,-500.0,0.00020821,3]
[347426880,1735789844055,-500.0,0.00020821,3]
[347426881,1735789844064,-500.0,0.00020821,3]
[347426882,1735789844074,-500.0,0.00020821,3]
[347426883,1735789844084,-1220.3,0.00020821,3]
[347426884,1735789844093,-420.0,0.00020899,2]
[347426885,1735789844104,-554.916,0.0002108,2]
[347426886,1735789844114,-500.0,0.00021095,3]
[347426887,1735789844123,-500.0,0.00021095,3]
[347426888,1735789844133,-500.0,0.00021095,3]
[347426889,1735789844142,-500.0,0.00021095,3]
[347426890,1735789844153,-1220.3,0.00021095,3]
[347426891,1735789844164,-822.0,0.000213,2]
[347426892,1735789844174,-500.0,0.00021369,3]
[347426893,1735789844183,-500.0,0.00021369,3]
[347426894,1735789844193,-500.0,0.00021369,3]
[347426895,1735789844202,-500.0,0.00021369,3]
[347426896,1735789844211,-1220.3,0.00021369,3]
[347426897,1735789844221,-160.0,0.00021443,3]
[347426898,1735789844231,-500.0,0.00021643,3]
[347426899,1735789844240,-500.0,0.00021643,3]
[347426900,1735789844250,-500.0,0.00021643,3]
[347426901,1735789844259,-500.0,0.00021643,3]
[347426902,1735789844269,-1220.3,0.00021643,3]
[347426903,1735789844278,-285.1635895,0.00021834,2]
[347426904,1735789844288,-156.42975988,0.000219,2]
[347426905,1735789844297,-227.74322712,0.00021917,3]
[347426906,1735789844307,-500.0,0.00021917,3]
[347426907,1735789844316,-500.0,0.00021917,3]
[347426908,1735789844326,-500.0,0.00021917,3]
[347426909,1735789844335,-1220.3,0.00021917,3]
[347426910,1735789844344,-513.0,0.00022,2]
[347426911,1735789844354,-150.0,0.00022,2]
[347426912,1735789844363,-500.0,0.00022,2]
[347426913,1735789844373,-500.0,0.00022,2]
[347426914,1735789844382,-500.0,0.00022,2]
[347426915,1735789844392,-500.0,0.00022,2]
[347426916,1735789844401,-484.0,0.00022,2]
[347426917,1735789844410,-160.0,0.00022105,4]
[347426918,1735789844419,-183.90428076,0.00022147,2]
[347426919,1735789844429,-500.0,0.00022191,3]
[347426920,1735789844437,-500.0,0.00022191,3]
[347426921,1735789844447,-500.0,0.00022191,3]
[347426922,1735789844457,-1220.3,0.00022191,3]
[347426923,1735789844466,-513.0,0.00022192,2]
[347426924,1735789844480,-500.0,0.00022465,3]
[347426925,1735789844489,-500.0,0.00022465,3]
[347426926,1735789844499,-330.30409704,0.00022465,3]
[347426927,1735789844508,-1220.3,0.00022465,3]
[347426928,1735789844517,-500.0,0.00022739,3]
[347426929,1735789844527,-500.0,0.00022739,3]
[347426930,1735789844536,-1220.3,0.00022739,3]
[347426931,1735789844546,-160.0,0.00022767,5]
[347426932,1735789844557,-304.74790172,0.00022767,5]
[347426933,1735789844566,-587.0,0.00022776,2]
[347426934,1735789844576,-180.67620909,0.00022913,2]
[347426935,1735789844586,-180.67620906,0.00022966,2]
[347426936,1735789844598,-499.0,0.00022999,2]
[347426937,1735789844608,-30516.2866419,0.00023,5]
[347426938,1735789844618,-315.71511279,0.00023,2]
[347426939,1735789844627,-479.80546368,0.00023013,3]
[347426940,1735789844637,-500.0,0.00023013,3]
[347426941,1735789844647,-1220.3,0.00023013,3]
[347426942,1735789844656,-513.0,0.00023014,2]
[347426943,1735789844665,-180.67620906,0.00023019,2]
[347426944,1735789844675,-180.67620906,0.00023071,2]
[347426945,1735789844684,-259.17563632,0.00023094,2]
[347426946,1735789844693,-177.62576704,0.00023094,2]
[347426947,1735789844703,-3515.12889314,0.00023095,14]
[347426948,1735789844712,-189.29,0.000231,31]
[347426949,1735789844722,-189.29,0.000231,31]
[347426950,1735789844731,-189.29,0.000231,31]
[347426951,1735789844740,-189.29,0.000231,31]
[347426952,1735789844749,-189.29,0.000231,31]
[347426953,1735789844758,-189.29,0.000231,31]
[347426954,1735789844767,-189.29,0.000231,31]
[347426955,1735789844777,-189.29,0.000231,31]
[347426956,1735789844786,-189.29,0.000231,31]
[347426957,1735789844795,-189.29,0.000231,31]
[347426958,1735789844804,-189.29,0.000231,31]
[347426959,1735789844814,-189.29,0.000231,31]
[347426960,1735789844823,-189.29,0.000231,31]
[347426961,1735789844833,-189.29,0.000231,31]
[347426962,1735789844842,-189.29,0.000231,31]
[347426963,1735789844851,-189.29,0.000231,31]
[347426964,1735789844861,-4127.49025466,0.00023124,3]
[347426965,1735789844870,-180.67620906,0.00023124,2]
[347426966,1735789844879,-546.91279643,0.000232,2]
[347426967,1735789844889,-546.91279641,0.000232,2]
[347426968,1735789844898,-546.91279641,0.000232,2]
[347426969,1735789844907,-546.91279641,0.000232,2]
[347426970,1735789844917,-151.0,0.000232,6]
[347426971,1735789844927,-500.0,0.00023223,2]
[347426972,1735789844941,-154.19657882,0.00023223,2]
[347426973,1735789844950,-622.22397007,0.00023223,2]
[347426974,1735789844959,-3190.0919802,0.00023223,2]
[347426975,1735789844969,-23145.04518799,0.00023223,2]
[347426976,1735789844978,-2363050.08593002,0.00023224,10]
[347426983,1735790093501,471.54870839,0.00014222,14]
[347427012,1735791034634,-159.782933,0.00013973,2]
[347427013,1735791034643,-1281.44781939,0.000189,2]
[347427015,1735791034655,-359.25646789,0.000189,2]
[347427017,1735791034664,-500.0,0.00019178,2]
[347427019,1735791034673,-155.62,0.00019178,2]
[347427021,1735791034683,-506.88504042,0.00019199,3]
[347427040,1735791034692,-629.66,0.000192,2]
[347427042,1735791034821,-300.0,0.00019449,2]
[347427044,1735791034830,-500.0,0.0001945,3]
[347427046,1735791034839,-500.0,0.0001945,3]
[347427048,1735791034848,-500.0,0.0001945,3]
[347427050,1735791034857,-595.47145878,0.0001945,3]
[347427052,1735791034867,-501.45441181,0.0001945,3]
[347427054,1735791034876,-505.6337366,0.0001945,3]
[347427057,1735791034886,-509.43229371,0.0001945,3]
[347427059,1735791034895,-503.47558313,0.0001945,3]
[347427061,1735791034904,-502.14145287,0.0001945,3]
[347427063,1735791034913,-510.98382504,0.0001945,3]
[347427065,1735791034923,-508.60137067,0.0001945,3]
[347427067,1735791034934,-509.87195607,0.0001945,3]
[347427068,1735791034943,-500.0,0.0001945,3]
[347427071,1735791034952,-509.32615478,0.0001945,3]
[347427073,1735791034961,-500.0,0.0001945,3]
[347427075,1735791034971,-500.0,0.0001945,3]
[347427077,1735791034979,-504.06286652,0.0001945,3]
[347427079,1735791034988,-508.38593385,0.0001945,3]
[347427081,1735791035000,-505.41395573,0.0001945,3]
[347427083,1735791035008,-515.46700531,0.0001945,3]
[347427085,1735791035017,-500.0,0.0001945,3]
[347427087,1735791035026,-500.0,0.0001945,3]
[347427089,1735791035036,-510.31595416,0.0001945,3]
[347427091,1735791035044,-505.23530081,0.0001945,3]
[347427093,1735791035054,-509.02885418,0.0001945,3]
[347427095,1735791035063,-500.0,0.0001945,3]
[347427097,1735791035072,-273.98200027,0.0001945,3]
[347427099,1735791035081,-502.99628481,0.0001945,3]
[347427101,1735791035091,-512.1701241,0.0001945,3]
[347427103,1735791035100,-510.21337728,0.0001945,3]
[347427105,1735791035109,-515.59434663,0.0001945,3]
[347427106,1735791035118,-504.73609375,0.0001945,3]
[347427107,1735791035127,-500.0,0.0001945,3]
[347427108,1735791035136,-301.74270659,0.0001945,3]
[347427109,1735791035145,-502.61603271,0.0001945,3]
[347427110,1735791035154,-482.13450664,0.0001945,3]
[347427111,1735791035163,-502.99950538,0.0001945,3]
[347427113,1735791035172,-500.0,0.0001945,3]
[347427114,1735791035181,-505.78621805,0.0001945,3]
[347427115,1735791035190,-501.88455972,0.0001945,3]
[347427117,1735791035199,-506.59321962,0.0001945,3]
[347427118,1735791035208,-500.0,0.0001945,3]
[347427119,1735791035216,-500.0,0.0001945,3]
[347427120,1735791035225,-500.0,0.0001945,3]
[347427121,1735791035234,-500.0,0.0001945,3]
[347427122,1735791035243,-511.57694804,0.0001945,3]
[347427123,1735791035251,-546.95,0.00019451,3]
[347427124,1735791035260,-500.0,0.00019451,3]
[347427125,1735791035269,-500.0,0.00019451,3]
[347427126,1735791035277,-500.0,0.00019451,3]
[347427127,1735791035286,-602.8,0.00019451,3]
[347427128,1735791035295,-500.0,0.00019451,3]
[347427129,1735791035304,-500.0,0.00019451,3]
[347427130,1735791035313,-642.38,0.00019451,3]
[347427131,1735791035322,-513.35354309,0.00019452,2]
[347427132,1735791035331,-166.06892397,0.00019624,2]
[347427133,1735791035340,-504.49492047,0.00019724,3]
[347427134,1735791035349,-568.70040244,0.00019724,3]
[347427135,1735791035359,-503.01129463,0.00019724,3]
[347427136,1735791035368,-504.35499256,0.00019724,3]
[347427137,1735791035377,-503.82528898,0.00019724,3]
[347427138,1735791035386,-509.83703833,0.00019724,3]
[347427139,1735791035395,-510.15460416,0.00019724,3]
[347427140,1735791035404,-606.0109727,0.00019724,3]
[347427141,1735791035413,-507.50015432,0.00019724,3]
[347427142,1735791035422,-502.01396469,0.00019724,3]
[347427143,1735791035430,-504.89871024,0.00019724,3]
[347427144,1735791035440,-502.68411941,0.00019724,3]
[347427145,1735791035450,-500.0,0.00019724,3]
[347427146,1735791035460,-500.0,0.00019724,3]
[347427147,1735791035470,-504.52164634,0.00019724,3]
[347427148,1735791035478,-505.2879491,0.00019724,3]
[347427149,1735791035487,-501.52394372,0.00019724,3]
[347427150,1735791035496,-1034.6,0.00019724,3]
[347427151,1735791035505,-507.9576459,0.00019724,3]
[347427152,1735791035514,-500.0,0.00019725,3]
[347427153,1735791035523,-284.82446863,0.00019998,3]
[347427155,1735791035533,-1034.6,0.00019998,3]
[347427156,1735791035542,-582.99,0.00019999,3]
[347427157,1735791035551,-4662.0,0.0002,2]
[347427158,1735791035560,-1034.6,0.00020272,3]
[347427159,1735791035569,-180.172,0.00020447,2]
[347427160,1735791035578,-159.782933,0.00020447,2]
[347427161,1735791035587,-1034.6,0.00020546,3]
[347427162,1735791035596,-408.28141967,0.0002082,3]
[347427169,1735791038285,-394.0,0.00020391,2]
[347427170,1735791038294,-626.31858033,0.0002082,3]
[347427171,1735791038303,-3000.0,0.00021,2]
[347427172,1735791038312,-3000.0,0.0002101,2]
[347427173,1735791038322,-3000.0,0.0002102,2]
[347427174,1735791038331,-3000.0,0.0002103,2]
[347427175,1735791038340,-3000.0,0.0002104,2]
[347427176,1735791038349,-3000.0,0.0002105,2]
[347427177,1735791038357,-3000.0,0.0002106,2]
[347427178,1735791038366,-3000.0,0.0002107,2]
[347427179,1735791038375,-3000.0,0.0002108,2]
[347427180,1735791038384,-1034.6,0.00021094,3]
[347427181,1735791038393,-1271.81887578,0.00021095,14]
[347427182,1735791038404,-1540.28423873,0.00021095,14]
[347427183,1735791038413,-420.0,0.0002119,2]
[347427184,1735791038422,-1034.6,0.00021368,3]
[347427185,1735791038431,-166.06892396,0.00021374,2]
[347427186,1735791038441,-4662.0,0.000216,4]
[347427187,1735791038450,-1034.6,0.00021642,3]
[347427188,1735791038459,-1034.6,0.00021916,3]
[347427189,1735791038468,-553.847,0.0002206,2]
[347427190,1735791038478,-1034.6,0.0002219,3]
[347427191,1735791038486,-537.60983731,0.00022464,3]
[347427192,1735791038498,-496.99016269,0.00022464,3]
[347427193,1735791038507,-1034.6,0.00022738,3]
[347427194,1735791038516,-1034.6,0.00023012,3]
[347427195,1735791038525,-587.0,0.00023086,2]
[347427196,1735791038535,-2812.10311451,0.00023095,14]
[347427197,1735791038544,-159.02,0.000231,31]
[347427198,1735791038553,-159.02,0.000231,31]
[347427199,1735791038563,-159.02,0.000231,31]
[347427200,1735791038571,-159.02,0.000231,31]
[347427201,1735791038581,-159.02,0.000231,31]
[347427202,1735791038590,-159.02,0.000231,31]
[347427203,1735791038599,-159.02,0.000231,31]
[347427204,1735791038608,-159.02,0.000231,31]
[347427205,1735791038617,-159.02,0.000231,31]
[347427206,1735791038626,-159.02,0.000231,31]
[347427207,1735791038635,-159.02,0.000231,31]
[347427208,1735791038644,-159.02,0.000231,31]
[347427209,1735791038653,-159.02,0.000231,31]
[347427210,1735791038663,-159.02,0.000231,31]
[347427211,1735791038672,-159.02,0.000231,31]
[347427212,1735791038682,-159.02,0.000231,31]
[347427213,1735791038691,-907.63868719,0.00023108,10]
[347427214,1735791038700,-166.06892396,0.00023124,2]
[347427215,1735791038709,-499.0,0.00023222,2]
[347427216,1735791038718,-500.0,0.00023223,2]
[347427217,1735791038727,-285.55677905,0.00023223,2]
[347427218,1735791038737,-151.0,0.00023223,7]
[347427219,1735791038746,-151.0,0.00023223,7]
[347427220,1735791038755,-151.0,0.00023223,7]
[347427221,1735791038764,-151.0,0.00023223,7]
[347427222,1735791038774,-151.0,0.00023223,7]
[347427223,1735791038783,-151.0,0.00023223,7]
[347427224,1735791038792,-151.0,0.00023223,7]
[347427225,1735791038802,-151.0,0.00023223,7]
[347427226,1735791038811,-151.0,0.00023223,7]
[347427227,1735791038820,-151.0,0.00023223,7]
[347427228,1735791038829,-151.0,0.00023223,7]
[347427229,1735791038839,-151.0,0.00023223,7]
[347427230,1735791038848,-151.0,0.00023223,7]
[347427231,1735791038857,-151.0,0.00023223,7]
[347427232,1735791038867,-151.0,0.00023223,7]
[347427233,1735791038876,-183.483122,0.00023223,7]
[347427234,1735791038886,-151.0,0.00023223,7]
[347427235,1735791038895,-151.0,0.00023223,7]
[347427236,1735791038904,-151.0,0.00023223,7]
[347427237,1735791038913,-151.0,0.00023223,7]
[347427238,1735791038926,-151.0,0.00023223,7]
[347427239,1735791038935,-296.30869,0.00023223,7]
[347427240,1735791038944,-1595.0459901,0.00023224,2]
[347427241,1735791038953,-11572.522594,0.00023224,2]
[347427242,1735791038962,-43559.75681941,0.00023224,10]
[347427257,1735791043528,-4524576.0,0.00023224,10]
[347427303,1735792001668,-163.831773,0.00013973,2]
[347427304,1735792001690,-63.02451107,0.000192,2]
[347427362,1735792234824,-1093.80285818,0.000189,2]
[347427363,1735792234834,-302.57643837,0.00019,2]
[347427364,1735792234843,-302.57643837,0.0001919,2]
[347427365,1735792234852,-560.39,0.000192,2]
[347427366,1735792234862,-302.57643837,0.0001938,2]
[347427367,1735792234872,-500.0,0.00019449,3]
[347427368,1735792234881,-500.0,0.0001945,3]
[347427369,1735792234891,-500.0,0.00019451,3]
[347427370,1735792234901,-302.57643837,0.0001957,2]
[347427371,1735792234910,-214.805804,0.00019724,3]
[347427380,1735792238480,-285.194196,0.00019724,3]
[347427381,1735792238490,-500.0,0.00019725,3]
[347427382,1735792238499,-302.57643837,0.0001976,2]
[347427383,1735792238508,-453.86465756,0.0001995,4]
[347427384,1735792238517,-10.69951868,0.00019998,3]
[347427385,1735792238529,-489.30048132,0.00019998,3]
[347427386,1735792238538,-500.0,0.00019999,3]
[347427387,1735792238547,-453.86465756,0.0002014,4]
[347427388,1735792238556,-163.585279,0.00020226,2]
[347427389,1735792238565,-155.62,0.00020226,2]
[347427390,1735792238574,-500.0,0.00020272,3]
[347427391,1735792238583,-500.0,0.00020273,3]
[347427392,1735792238593,-237.7959667,0.00020326,2]
[347427393,1735792238602,-453.86465756,0.0002033,4]
[347427394,1735792238612,-300.0,0.00020519,2]
[347427395,1735792238621,-453.86465756,0.0002052,4]
[347427396,1735792238630,-500.81097028,0.00020546,3]
[347427397,1735792238640,-500.0,0.00020547,3]
[347427398,1735792238650,-394.0,0.00020631,2]
[347427399,1735792238659,-453.86465756,0.0002071,4]
[347427400,1735792238669,-163.831773,0.00020807,2]
[347427401,1735792238678,-500.0,0.00020821,3]
[347427403,1735792238688,-500.0,0.00021095,3]
[347427405,1735792238699,-2249.68249161,0.00021095,14]
[347427407,1735792238709,-500.0,0.00021369,3]
[347427409,1735792238718,-180.172,0.00021642,2]
[347427411,1735792238729,-500.0,0.00021643,3]
[347427413,1735792238738,-165.4487357,0.00021723,2]
[347427415,1735792238748,-576.94,0.00021917,3]
[347427416,1735792238757,-552.674,0.0002206,2]
[347427418,1735792238767,-420.0,0.00022331,2]
[347427419,1735792238776,-20533.74493374,0.0002258,60]
[347427420,1735792238787,-495.1143853,0.0002258,60]
[347427421,1735792238799,-3954.98622749,0.0002258,60]
[347427593,1735793047806,239.55974678,0.00014222,14]
[347427594,1735793155022,450.0,0.00025,120]
[347427641,1735793434060,-180.180641,0.00013973,2]
[347427643,1735793434070,-426.66187989,0.00018539,2]
[347427646,1735793434117,-186.38795601,0.00018539,2]
[347427647,1735793434126,-163.585279,0.00019178,2]
[347427648,1735793434136,-504.35,0.000192,2]
[347427649,1735793434146,-300.0,0.00019448,2]
[347427650,1735793434155,-1778.56564325,0.00019449,3]
[347427651,1735793434167,-1638.97718917,0.00019449,3]
[347427697,1735793437676,-423.28716758,0.00019449,3]
[347427699,1735793437686,-500.0,0.00019449,3]
[347427701,1735793437695,-62.65107713,0.00019449,3]
[347427746,1735793439776,-847.76892287,0.00019449,3]
[347427747,1735793439785,-500.0,0.00019449,3]
[347427748,1735793439795,-500.0,0.0001945,2]
[347427749,1735793439804,-4400.03,0.0001945,3]
[347427750,1735793439814,-43.68809388,0.00019623,2]
[347427802,1735793445969,-500.0,0.00019449,3]
[347427803,1735793445979,-2.9,0.00019623,2]
[347427819,1735794014776,-171.171608,0.00013833,2]
[347427820,1735794014812,-171.171608,0.00013973,2]
[347427920,1735794637830,-631.24941814,0.00016899,2]
[347427921,1735794637840,-3132.2195724,0.0001707,2]
[347427922,1735794637849,-300.0,0.0001715,2]
[347427923,1735794637858,-12930.87949742,0.00017151,2]
[347427924,1735794637867,-3132.2195724,0.00017243,2]
[347427925,1735794637877,-12930.87949742,0.0001727,2]
[347427926,1735794637887,-12930.87949742,0.00017718,2]
[347427927,1735794637896,-500.0,0.00017813,2]
[347427928,1735794637907,-500.0,0.00017813,2]
[347427929,1735794637916,-500.0,0.00017813,2]
[347427930,1735794637925,-500.0,0.00017813,2]
[347427931,1735794637935,-500.0,0.00017813,2]
[347427932,1735794637948,-500.0,0.00017813,2]
[347427933,1735794637956,-200.69159421,0.00017813,2]
[347427934,1735794637967,-500.0,0.00017813,2]
[347427935,1735794637976,-500.0,0.00017813,2]
[347427936,1735794637984,-500.0,0.00017813,2]
[347427937,1735794637994,-183.48046466,0.00017813,2]
[347427939,1735794638003,-500.0,0.00017813,2]